fUST/lending_fUST_20240914
["ID","MTS","AMOUNT","RATE_DAILY","PERIOD"]
[338149836,1726315513290,-1997.07,0.00043835,120]
[338149837,1726315513327,-1997.07,0.00043835,120]
[338149838,1726315513364,-1997.07,0.00043835,120]
[338149839,1726315513406,-1997.07,0.00043835,120]
[338149840,1726315513446,-1997.07,0.00043835,120]
[338149841,1726315513484,-1997.07,0.00043835,120]
[338149842,1726315513522,-1997.07,0.00043835,120]
[338149843,1726315513561,-1997.07,0.00043835,120]
[338149844,1726315513600,-1997.07,0.00043835,120]
[338149845,1726315513638,-1997.07,0.00043835,120]
[338149846,1726315513677,-1997.07,0.00043835,120]
[338149847,1726315513719,-500.0,0.00043835,120]
[338149848,1726315513760,-1997.07,0.00043835,120]
[338149849,1726315513801,-1997.07,0.00043835,120]
[338149850,1726315513843,-1997.07,0.00043835,120]
[338149851,1726315513885,-1997.07,0.00043835,120]
[338149852,1726315513929,-1997.07,0.00043835,120]
[338149853,1726315514083,-500.0,0.00043835,120]
[338149854,1726315514132,-1997.07,0.00043835,120]
[338149855,1726315514179,-1997.07,0.00043835,120]
[338149856,1726315514224,-1997.28194586,0.00043835,120]
[338149857,1726315514267,-500.0,0.00043835,120]
[338149858,1726315514310,-500.0,0.00043835,120]
[338149859,1726315514351,-500.0,0.00043835,120]
[338149860,1726315514395,-1835.97,0.00043835,120]
[338149861,1726315514441,-500.0,0.00043835,120]
[338149862,1726315514487,-500.0,0.00043835,120]
[338149863,1726315514531,-891.94,0.00043835,120]
[338149864,1726315514575,-360.56271022,0.00043835,120]
[338149865,1726315514618,-589.49515845,0.00043835,120]
[338149866,1726315514666,-519.67,0.00043835,120]
[338149867,1726315514713,-500.0,0.00043835,120]
[338149868,1726315514758,-500.0,0.00043835,120]
[338149869,1726315514803,-1000.0,0.00043835,118]
[338149870,1726315514846,-500.0,0.00043835,120]
[338149871,1726315514890,-2387.98,0.00043835,120]
[338149872,1726315514933,-2387.98,0.00043835,120]
[338149873,1726315514976,-500.0,0.00043835,120]
[338149874,1726315515028,-2387.98,0.00043835,120]
[338149875,1726315515096,-2387.98,0.00043835,120]
[338149876,1726315515165,-2387.98,0.00043835,120]
[338149877,1726315515230,-2387.98,0.00043835,120]
[338149878,1726315515299,-2387.98,0.00043835,120]
[338149879,1726315515359,-2387.98,0.00043835,120]
[338149880,1726315515423,-2387.98,0.00043835,120]
[338149881,1726315515484,-2387.98,0.00043835,120]
[338149882,1726315515546,-2387.98,0.00043835,120]
[338149883,1726315515610,-2387.98,0.00043835,120]
[338149884,1726315515678,-500.0,0.00043835,120]
[338149885,1726315515744,-2387.98,0.00043835,120]
[338149886,1726315515806,-2387.98,0.00043835,120]
[338149887,1726315515868,-2387.98,0.00043835,120]
[338149888,1726315515931,-2387.98,0.00043835,120]
[338149889,1726315515994,-2387.98,0.00043835,120]
[338149890,1726315516057,-2387.98,0.00043835,120]
[338149891,1726315516117,-500.0,0.00043835,120]
[338149892,1726315516176,-2387.98,0.00043835,120]
[338149893,1726315516234,-2387.98,0.00043835,120]
[338149894,1726315516293,-2387.98,0.00043835,120]
[338149895,1726315516494,-2387.98,0.00043835,120]
[338149896,1726315516539,-2387.98,0.00043835,120]
[338149897,1726315516581,-2387.99441081,0.00043835,120]
[338149898,1726315516622,-2641.58,0.00043835,120]
[338149899,1726315516668,-500.0,0.00043835,120]
[338149900,1726315516710,-500.0,0.00043835,120]
[338149901,1726315516752,-500.0,0.00043835,120]
[338149902,1726315516793,-1718.33,0.00043835,120]
[338149903,1726315516834,-500.0,0.00043835,120]
[338149904,1726315516876,-500.0,0.00043835,120]
[338149905,1726315516918,-500.0,0.00043835,120]
[338149906,1726315516962,-500.0,0.00043835,120]
[338149907,1726315517008,-500.0,0.00043835,120]
[338149908,1726315517050,-1011.37,0.00043835,120]
[338149909,1726315517092,-500.0,0.00043835,120]
[338149910,1726315517136,-500.0,0.00043835,120]
[338149911,1726315517178,-500.0,0.00043835,120]
[338149912,1726315517222,-500.0,0.00043835,120]
[338149913,1726315517267,-604.55,0.00043835,120]
[338149914,1726315517313,-761.39,0.00043835,120]
[338149915,1726315517356,-500.0,0.00043835,120]
[338149916,1726315517401,-1576.26,0.00043835,120]
[338149917,1726315517447,-500.0,0.00043835,120]
[338149918,1726315517495,-500.0,0.00043835,120]
[338149919,1726315517542,-500.0,0.00043835,120]
[338149920,1726315517585,-1802.49,0.00043835,120]
[338149921,1726315517630,-500.0,0.00043835,120]
[338149922,1726315517676,-286.70476042,0.00043835,120]
[338149923,1726315517728,-1966.56,0.00043835,120]
[338149924,1726315517772,-500.0,0.00043835,120]
[338149925,1726315517818,-1966.56,0.00043835,120]
[338149926,1726315517861,-500.0,0.00043835,120]
[338149927,1726315517906,-1966.56,0.00043835,120]
[338149928,1726315517950,-1966.56,0.00043835,120]
[338149929,1726315517994,-1966.56,0.00043835,120]
[338149930,1726315518039,-1966.56,0.00043835,120]
[338149931,1726315518084,-1966.56,0.00043835,120]
[338149932,1726315518129,-1966.56,0.00043835,120]
[338149933,1726315518176,-1966.56,0.00043835,120]
[338149934,1726315518225,-1966.56,0.00043835,120]
[338149935,1726315518271,-1966.56,0.00043835,120]
[338149936,1726315518316,-1966.56,0.00043835,120]
[338149937,1726315518361,-1966.56,0.00043835,120]
[338149938,1726315518409,-1966.56,0.00043835,120]
[338149939,1726315518538,-1966.56,0.00043835,120]
[338149940,1726315518588,-1966.56,0.00043835,120]
[338149941,1726315518637,-1966.56,0.00043835,120]
[338149942,1726315518682,-1966.56,0.00043835,120]
[338149943,1726315518731,-1966.56,0.00043835,120]
[338149944,1726315518776,-500.0,0.00043835,120]
[338149945,1726315518825,-1966.56,0.00043835,120]
[338149946,1726315518870,-1401.15,0.00043835,120]
[338149947,1726315518913,-1966.56,0.00043835,120]
[338149948,1726315518957,-1966.56,0.00043835,120]
[338149949,1726315519003,-1966.56,0.00043835,120]
[338149950,1726315519049,-1966.78399087,0.00043835,120]
[338149951,1726315519094,-500.0,0.00043835,120]
[338149952,1726315519139,-500.0,0.00043835,120]
[338149953,1726315519185,-500.0,0.00043835,120]
[338149954,1726315519232,-500.0,0.00043835,120]
[338149955,1726315519281,-500.0,0.00043835,120]
[338149956,1726315519330,-500.0,0.00043835,120]
[338149957,1726315519379,-583.26,0.00043835,120]
[338149958,1726315519426,-695.7,0.00043835,120]
[338149959,1726315519471,-500.0,0.00043835,120]
[338149960,1726315519527,-500.0,0.00043835,120]
[338149961,1726315519573,-986.21,0.00043835,120]
[338149962,1726315519620,-2943.43,0.00043835,120]
[338149963,1726315519669,-500.0,0.00043835,120]
[338149964,1726315519715,-500.0,0.00043835,120]
[338149965,1726315519762,-626.28660091,0.00043835,120]
[338149966,1726315519808,-500.0,0.00043835,120]
[338149967,1726315519855,-500.0,0.00043835,120]
[338149968,1726315519903,-500.0,0.00043835,120]
[338149969,1726315519954,-500.0,0.00043835,120]
[338149970,1726315520002,-500.0,0.00043835,120]
[338149971,1726315520049,-214.98183761,0.00043835,120]
[338149972,1726315520095,-719.24,0.00043835,120]
[338149973,1726315520140,-500.0,0.00043835,120]
[338149974,1726315520185,-500.0,0.00043835,120]
[338149975,1726315520230,-501.60475851,0.00043835,120]
[338149976,1726315520277,-500.0,0.00043835,120]
[338149977,1726315520320,-500.0,0.00043835,120]
[338149978,1726315520365,-504.89,0.00043835,120]
[338149979,1726315520414,-500.0,0.00043835,120]
[338149980,1726315520459,-500.0,0.00043835,120]
[338149981,1726315520506,-500.0,0.00043835,120]
[338149982,1726315520627,-500.0,0.00043835,120]
[338149983,1726315520674,-500.0,0.00043835,120]
[338149984,1726315520717,-500.0,0.00043835,120]
[338149985,1726315520762,-500.0,0.00043835,120]
[338149986,1726315520806,-500.0,0.00043835,120]
[338149987,1726315520848,-478.17278916,0.00043835,120]
[338149988,1726315520888,-500.0,0.00043835,120]
[338149989,1726315520928,-500.0,0.00043835,120]
[338149990,1726315520968,-500.0,0.00043835,120]
[338149991,1726315521010,-547.23,0.00043835,120]
[338149992,1726315521049,-500.0,0.00043835,120]
[338149993,1726315521099,-577.1644569,0.00043835,120]
[338149994,1726315521145,-1197.1,0.00043835,120]
[338149995,1726315521187,-502.26747869,0.00043835,120]
[338149996,1726315521229,-497.80885397,0.00043835,120]
[338149997,1726315521270,-504.35686013,0.00043835,120]
[338149998,1726315521312,-500.0,0.00043835,120]
[338149999,1726315521353,-500.0,0.00043835,120]
[338150000,1726315521398,-888.18,0.00043835,120]
[338150001,1726315521440,-841.08,0.00043835,120]
[338150002,1726315521483,-500.0,0.00043835,120]
[338150003,1726315521524,-500.0,0.00043835,120]
[338150004,1726315521567,-500.0,0.00043835,10]
[338150005,1726315521610,-500.0,0.00043835,120]
[338150006,1726315521655,-500.0,0.00043835,120]
[338150007,1726315521700,-500.0,0.00043835,120]
[338150008,1726315521747,-500.0,0.00043835,120]
[338150009,1726315521791,-500.0,0.00043835,120]
[338150010,1726315521838,-3758.42,0.00043835,120]
[338150011,1726315521881,-641.63,0.00043835,120]
[338150012,1726315521924,-500.0,0.00043835,120]
[338150013,1726315521966,-500.0,0.00043835,120]
[338150014,1726315522011,-500.0,0.00043835,120]
[338150015,1726315522055,-500.0,0.00043835,120]
[338150016,1726315522099,-500.0,0.00043835,120]
[338150017,1726315522140,-500.0,0.00043835,120]
[338150018,1726315522186,-398.90125072,0.00043835,120]
[338150019,1726315522238,-500.0,0.00043835,120]
[338150020,1726315522284,-500.0,0.00043835,120]
[338150021,1726315522330,-500.0,0.00043835,120]
[338150022,1726315522374,-500.0,0.00043835,120]
[338150023,1726315522420,-500.0,0.00043835,60]
[338150024,1726315522464,-500.0,0.00043835,120]
[338150025,1726315522508,-500.0,0.00043835,120]
[338150026,1726315522550,-500.0,0.00043835,120]
[338150027,1726315522589,-500.0,0.00043835,120]
[338150028,1726315522631,-500.0,0.00043835,120]
[338150029,1726315522675,-551.84,0.00043835,120]
[338150030,1726315522717,-37280.5,0.00043835,120]
[338150031,1726315522765,-500.0,0.00043835,120]
[338150032,1726315522808,-500.0,0.00043835,120]
[338150033,1726315522852,-500.0,0.00043835,120]
[338150034,1726315522896,-500.0,0.00043835,120]
[338150035,1726315522941,-2696.63,0.00043835,120]
[338150036,1726315522995,-500.0,0.00043835,120]
[338150037,1726315523042,-2322.43,0.00043835,120]
[338150038,1726315523089,-500.0,0.00043835,120]
[338150039,1726315523134,-500.0,0.00043835,120]
[338150040,1726315523179,-500.0,0.00043835,120]
[338150041,1726315523231,-500.0,0.00043835,30]
[338150042,1726315523283,-500.0,0.00043835,120]
[338150043,1726315523461,-1893.53,0.00043835,120]
[338150044,1726315523511,-378.25248302,0.00043835,30]
[338150045,1726315523555,-500.0,0.00043835,30]
[338150046,1726315523598,-500.0,0.00043835,120]
[338150047,1726315523640,-500.0,0.00043835,120]
[338150048,1726315523685,-500.0,0.00043835,120]
[338150049,1726315523733,-500.0,0.00043835,120]
[338150050,1726315523776,-500.0,0.00043835,120]
[338150051,1726315523818,-273.93283798,0.00043835,120]
[338150052,1726315523861,-500.0,0.00043835,120]
[338150053,1726315523907,-514.92,0.00043835,120]
[338150054,1726315523950,-500.0,0.00043835,120]
[338150055,1726315523995,-500.0,0.00043835,120]
[338150056,1726315524041,-500.0,0.00043835,120]
[338150057,1726315524086,-500.0,0.00043835,120]
[338150058,1726315524128,-627.08028944,0.00043835,120]
[338150059,1726315524172,-2660.83,0.00043835,120]
[338150060,1726315524217,-500.0,0.00043835,120]
[338150061,1726315524279,-500.0,0.00043835,120]
[338150062,1726315524328,-1653.75,0.00043835,120]
[338150063,1726315524373,-223.95747299,0.00043835,120]
[338150064,1726315524421,-1024.98,0.00043835,120]
[338150065,1726315524470,-500.0,0.00043835,120]
[338150066,1726315524515,-500.0,0.00043835,120]
[338150067,1726315524564,-500.0,0.00043835,120]
[338150068,1726315524612,-500.0,0.00043835,120]
[338150069,1726315524662,-490.11886792,0.00043835,120]
[338150070,1726315524708,-1606.4,0.00043835,120]
[338150071,1726315524755,-500.0,0.00043835,120]
[338150072,1726315524802,-63814.6,0.00043835,18]
[338150073,1726315524847,-1176.98,0.00043835,120]
[338150074,1726315524893,-500.0,0.00043835,120]
[338150075,1726315524938,-606.26827727,0.00043835,120]
[338150076,1726315524982,-501.7708067,0.00043835,120]
[338150077,1726315525027,-616.13364036,0.00043835,120]
[338150078,1726315525071,-500.0,0.00043835,120]
[338150079,1726315525116,-984.11,0.00043835,120]
[338150080,1726315525159,-500.0,0.00043835,120]
[338150081,1726315525203,-500.0,0.00043835,120]
[338150082,1726315525247,-506.0,0.00043835,120]
[338150083,1726315525294,-500.0,0.00043835,120]
[338150084,1726315525336,-500.0,0.00043835,120]
[338150085,1726315525383,-500.0,0.00043835,120]
[338150086,1726315525429,-647.65,0.00043835,120]
[338150087,1726315525473,-792.81,0.00043835,120]
[338150088,1726315525514,-500.0,0.00043835,120]
[338150089,1726315525554,-500.0,0.00043835,120]
[338150090,1726315525593,-500.0,0.00043835,120]
[338150091,1726315525635,-1160.12,0.00043835,120]
[338150092,1726315525680,-8035.84,0.00043835,120]
[338150093,1726315525726,-500.0,0.00043835,120]
[338150094,1726315525771,-3368.45,0.00043835,21]
[338150095,1726315525815,-500.0,0.00043835,120]
[338150096,1726315525859,-500.0,0.00043835,120]
[338150097,1726315525903,-500.0,0.00043835,120]
[338150098,1726315525946,-500.0,0.00043835,120]
[338150099,1726315525989,-570.96,0.00043835,120]
[338150100,1726315526033,-570.96,0.00043835,120]
[338150101,1726315526077,-500.0,0.00043835,120]
[338150102,1726315526120,-570.96,0.00043835,120]
[338150103,1726315526163,-570.96,0.00043835,120]
[338150104,1726315526207,-570.96,0.00043835,120]
[338150105,1726315526257,-570.96,0.00043835,120]
[338150106,1726315526312,-570.96,0.00043835,120]
[338150107,1726315526361,-1599.84,0.00043835,120]
[338150108,1726315526408,-500.0,0.00043835,120]
[338150109,1726315526457,-570.96,0.00043835,120]
[338150110,1726315526507,-570.96,0.00043835,120]
[338150111,1726315526555,-570.96,0.00043835,120]
[338150112,1726315526601,-570.96,0.00043835,120]
[338150113,1726315526648,-1138.19,0.00043835,120]
[338150114,1726315526695,-1883.92,0.00043835,120]
[338150115,1726315526741,-570.96,0.00043835,120]
[338150116,1726315526787,-570.96,0.00043835,120]
[338150117,1726315526831,-570.96,0.00043835,120]
[338150118,1726315526876,-570.96,0.00043835,120]
[338150119,1726315526921,-500.0,0.00043835,120]
[338150120,1726315526966,-500.0,0.00043835,120]
[338150121,1726315527021,-570.96,0.00043835,120]
[338150122,1726315527067,-570.96,0.00043835,120]
[338150123,1726315527112,-570.96,0.00043835,120]
[338150124,1726315527156,-570.96,0.00043835,120]
[338150125,1726315527198,-4588.85,0.00043835,120]
[338150126,1726315527239,-570.96,0.00043835,120]
[338150127,1726315527280,-570.96,0.00043835,120]
[338150128,1726315527490,-570.96,0.00043835,120]
[338150129,1726315527540,-570.96,0.00043835,120]
[338150130,1726315527586,-500.0,0.00043835,120]
[338150131,1726315527635,-571.14,0.00043835,120]
[338150132,1726315527683,-500.0,0.00043835,120]
[338150133,1726315527730,-500.0,0.00043835,120]
[338150134,1726315527778,-500.0,0.00043835,120]
[338150135,1726315527823,-500.0,0.00043835,120]
[338150136,1726315527874,-598.28,0.00043835,120]
[338150137,1726315527930,-500.0,0.00043835,120]
[338150138,1726315527976,-629.84499375,0.00043835,120]
[338150139,1726315528023,-500.0,0.00043835,120]
[338150140,1726315528068,-500.0,0.00043835,120]
[338150141,1726315528113,-698.35,0.00043835,120]
[338150142,1726315528158,-500.0,0.00043835,120]
[338150143,1726315528202,-500.0,0.00043835,120]
[338150144,1726315528247,-500.0,0.00043835,120]
[338150145,1726315528291,-500.0,0.00043835,120]
[338150146,1726315528335,-500.0,0.00043835,120]
[338150147,1726315528380,-500.0,0.00043835,120]
[338150148,1726315528426,-500.0,0.00043835,120]
[338150149,1726315528470,-500.0,0.00043835,120]
[338150150,1726315528514,-500.0,0.00043835,120]
[338150151,1726315528556,-3109.86,0.00043835,120]
[338150152,1726315528598,-5000.0,0.00043835,120]
[338150153,1726315528642,-1578.4,0.00043835,120]
[338150154,1726315528689,-8807.46,0.00043835,120]
[338150155,1726315528735,-500.0,0.00043835,120]
[338150156,1726315528779,-500.0,0.00043835,120]
[338150157,1726315528822,-500.0,0.00043835,120]
[338150158,1726315528867,-500.0,0.00043835,120]
[338150159,1726315528913,-4831.57,0.00043835,120]
[338150160,1726315528959,-501.8925155,0.00043835,120]
[338150161,1726315529007,-500.0,0.00043835,120]
[338150162,1726315529048,-500.0,0.00043835,120]
[338150163,1726315529092,-500.0,0.00043835,120]
[338150164,1726315529137,-500.0,0.00043835,120]
[338150165,1726315529181,-500.0,0.00043835,120]
[338150166,1726315529225,-869.73,0.00043835,120]
[338150167,1726315529276,-500.0,0.00043835,120]
[338150168,1726315529323,-7780.47,0.00043835,120]
[338150169,1726315529391,-3984.59,0.00043835,120]
[338150170,1726315529452,-500.0,0.00043835,120]
[338150171,1726315529516,-500.0,0.00043835,120]
[338150172,1726315529578,-940.72,0.00043835,120]
[338150173,1726315529640,-1790.23,0.00043835,120]
[338150174,1726315529696,-500.0,0.00043835,120]
[338150175,1726315529759,-195.51327732,0.00043835,120]
[338150176,1726315529822,-2108.31,0.00043835,120]
[338150177,1726315529877,-500.0,0.00043835,120]
[338150178,1726315529930,-500.0,0.00043835,120]
[338150179,1726315529989,-3476.27,0.00043835,120]
[338150180,1726315530040,-1000.0,0.00043835,90]
[338150181,1726315530096,-500.0,0.00043835,120]
[338150182,1726315530154,-500.0,0.00043835,120]
[338150183,1726315530210,-500.0,0.00043835,120]
[338150184,1726315530267,-500.0,0.00043835,120]
[338150185,1726315530324,-1343.37,0.00043835,120]
[338150186,1726315530385,-975.21,0.00043835,120]
[338150187,1726315530440,-500.0,0.00043835,120]
[338150188,1726315530500,-520.55,0.00043835,120]
[338150189,1726315530555,-500.0,0.00043835,120]
[338150190,1726315530607,-500.0,0.00043835,120]
[338150191,1726315530664,-14177.8,0.00043835,120]
[338150192,1726315530719,-500.0,0.00043835,120]
[338150193,1726315530780,-1029.64,0.00043835,120]
[338150194,1726315530834,-639.0219202,0.00043835,120]
[338150195,1726315530888,-1313.87,0.00043835,120]
[338150196,1726315530943,-677.79,0.00043835,120]
[338150197,1726315530996,-1028.51,0.00043835,120]
[338150198,1726315531047,-500.0,0.00043835,120]
[338150199,1726315531098,-39321.9,0.00043835,120]
[338150200,1726315531149,-500.0,0.00043835,120]
[338150201,1726315531200,-8643.43,0.00043835,120]
[338150202,1726315531251,-500.0,0.00043835,120]
[338150203,1726315531301,-500.0,0.00043835,120]
[338150204,1726315531353,-1616.69,0.00043835,120]
[338150205,1726315531405,-500.0,0.00043835,120]
[338150206,1726315531458,-744.34,0.00043835,120]
[338150207,1726315531512,-596.19,0.00043835,120]
[338150208,1726315531563,-1380.2,0.00043835,120]
[338150209,1726315531614,-2731.79,0.00043835,120]
[338150210,1726315531669,-500.0,0.00043835,120]
[338150211,1726315531727,-500.0,0.00043835,120]
[338150212,1726315531786,-913.71,0.00043835,120]
[338150213,1726315531843,-500.0,0.00043835,120]
[338150214,1726315531901,-500.0,0.00043835,120]
[338150215,1726315531958,-2338.79,0.00043835,120]
[338150216,1726315532018,-189.43852238,0.00043835,120]
[338150217,1726315532074,-2018.71,0.00043835,120]
[338150218,1726315532131,-1969.08,0.00043835,120]
[338150219,1726315532188,-3960.45,0.00043835,120]
[338150220,1726315532241,-500.0,0.00043835,120]
[338150221,1726315532288,-500.0,0.00043835,120]
[338150222,1726315532340,-500.0,0.00043835,120]
[338150223,1726315532391,-500.0,0.00043835,120]
[338150224,1726315532441,-575.54,0.00043835,120]
[338150225,1726315532490,-500.0,0.00043835,120]
[338150226,1726315532537,-606.71,0.00043835,120]
[338150227,1726315532722,-513.4,0.00043835,120]
[338150228,1726315532771,-500.0,0.00043835,120]
[338150229,1726315532818,-500.0,0.00043835,120]
[338150230,1726315532863,-244.40697302,0.00043835,120]
[338150231,1726315532906,-856.2,0.00043835,120]
[338150232,1726315532948,-500.0,0.00043835,120]
[338150233,1726315532992,-500.0,0.00043835,120]
[338150234,1726315533036,-3601.58,0.00043835,120]
[338150235,1726315533081,-500.0,0.00043835,120]
[338150236,1726315533125,-500.0,0.00043835,120]
[338150237,1726315533169,-546.15,0.00043835,120]
[338150238,1726315533214,-500.0,0.00043835,120]
[338150239,1726315533260,-500.0,0.00043835,120]
[338150240,1726315533308,-1148.39,0.00043835,120]
[338150241,1726315533353,-500.0,0.00043835,120]
[338150242,1726315533400,-3441.33,0.00043835,120]
[338150243,1726315533445,-1189.71,0.00043835,120]
[338150244,1726315533493,-500.0,0.00043835,120]
[338150245,1726315533538,-1134.08,0.00043835,120]
[338150246,1726315533584,-500.0,0.00043835,120]
[338150247,1726315533628,-504.83,0.00043835,120]
[338150248,1726315533675,-1120.24,0.00043835,120]
[338150249,1726315533721,-500.0,0.00043835,120]
[338150250,1726315533768,-1120.24,0.00043835,120]
[338150251,1726315533813,-1120.24,0.00043835,120]
[338150252,1726315533860,-1120.24,0.00043835,120]
[338150253,1726315533904,-1120.24,0.00043835,120]
[338150254,1726315533949,-1120.24,0.00043835,120]
[338150255,1726315533995,-1120.24,0.00043835,120]
[338150256,1726315534044,-1120.24,0.00043835,120]
[338150257,1726315534093,-1120.24,0.00043835,120]
[338150258,1726315534140,-1120.24,0.00043835,120]
[338150259,1726315534187,-1120.24,0.00043835,120]
[338150260,1726315534234,-1120.24,0.00043835,120]
[338150261,1726315534282,-500.0,0.00043835,120]
[338150262,1726315534328,-1120.24,0.00043835,120]
[338150263,1726315534373,-1120.24,0.00043835,120]
[338150264,1726315534422,-1120.24,0.00043835,120]
[338150265,1726315534469,-1120.24,0.00043835,120]
[338150266,1726315534515,-1120.24,0.00043835,120]
[338150267,1726315534561,-526.16757523,0.00043835,120]
[338150268,1726315534607,-1120.24,0.00043835,120]
[338150269,1726315534655,-1120.24,0.00043835,120]
[338150270,1726315534703,-632.00464721,0.00043835,120]
[338150271,1726315534749,-1120.24,0.00043835,120]
[338150272,1726315534796,-2376.0,0.00043835,120]
[338150273,1726315534842,-1120.24,0.00043835,120]
[338150274,1726315534889,-500.0,0.00043835,120]
[338150275,1726315534935,-1120.24,0.00043835,120]
[338150276,1726315534981,-500.0,0.00043835,120]
[338150277,1726315535028,-1120.24,0.00043835,120]
[338150278,1726315535076,-1120.30889024,0.00043835,120]
[338150279,1726315535124,-500.0,0.00043835,120]
[338150280,1726315535171,-600.15,0.00043835,120]
[338150281,1726315535216,-500.0,0.00043835,120]
[338150282,1726315535262,-1889.31,0.00043835,120]
[338150283,1726315535307,-500.0,0.00043835,120]
[338150284,1726315535352,-500.0,0.00043835,120]
[338150285,1726315535396,-500.0,0.00043835,120]
[338150286,1726315535439,-500.0,0.00043835,120]
[338150287,1726315535483,-501.22114035,0.00043835,120]
[338150288,1726315535526,-1048.01,0.00043835,120]
[338150289,1726315535571,-836.73,0.00043835,120]
[338150290,1726315535615,-568.42,0.00043835,120]
[338150291,1726315535660,-500.0,0.00043835,120]
[338150292,1726315535703,-1159.53,0.00043835,120]
[338150293,1726315535747,-1381.94,0.00043835,120]
[338150294,1726315535792,-500.0,0.00043835,120]
[338150295,1726315535835,-531.56323755,0.00043835,120]
[338150296,1726315535877,-500.0,0.00043835,120]
[338150297,1726315535918,-3047.52,0.00043835,120]
[338150298,1726315535960,-500.0,0.00043835,120]
[338150299,1726315536003,-2147.05,0.00043835,120]
[338150300,1726315536047,-2012.22,0.00043835,120]
[338150301,1726315536088,-500.0,0.00043835,120]
[338150302,1726315536132,-645.7655726,0.00043835,120]
[338150303,1726315536175,-1687.72,0.00043835,120]
[338150304,1726315536221,-3863.8,0.00043835,120]
[338150305,1726315536264,-500.0,0.00043835,120]
[338150306,1726315536305,-500.0,0.00043835,120]
[338150307,1726315536347,-500.0,0.00043835,120]
[338150308,1726315536392,-14732.11,0.00043835,120]
[338150309,1726315536433,-500.0,0.00043835,120]
[338150310,1726315536475,-1613.53,0.00043835,120]
[338150311,1726315536516,-2943.31,0.00043835,120]
[338150312,1726315536558,-500.0,0.00043835,120]
[338150313,1726315536599,-11015.57,0.00043835,120]
[338150314,1726315536640,-500.0,0.00043835,120]
[338150315,1726315536684,-11015.57,0.00043835,120]
[338150316,1726315536725,-11015.57,0.00043835,120]
[338150317,1726315536769,-11015.57,0.00043835,120]
[338150318,1726315536812,-11015.57,0.00043835,120]
[338150319,1726315536854,-11015.57,0.00043835,120]
[338150320,1726315536899,-11015.57,0.00043835,120]
[338150321,1726315536943,-11015.57,0.00043835,120]
[338150322,1726315536991,-11015.57,0.00043835,120]
[338150323,1726315537034,-11015.57,0.00043835,120]
[338150324,1726315537076,-11015.57,0.00043835,120]
[338150325,1726315537118,-90472.43,0.00043835,120]
[338150326,1726315537318,-11015.57,0.00043835,120]
[338150327,1726315537363,-11015.57,0.00043835,120]
[338150328,1726315537405,-11015.57,0.00043835,120]
[338150329,1726315537449,-11015.57,0.00043835,120]
[338150330,1726315537491,-11015.57,0.00043835,120]
[338150331,1726315537532,-11015.57,0.00043835,120]
[338150332,1726315537574,-500.0,0.00043835,120]
[338150333,1726315537617,-2752.35266459,0.00043835,120]
[338150334,1726315542681,-1855.52,0.00022219,7]
[338150335,1726315542725,-1855.52,0.00022219,7]